bitfinex/quotes_SOLUSD_20240915
["timestamp","ask_amount","ask_price","bid_price","bid_amount"]
[1726433705631,15.8252,133.66,133.61,15.11918887]
[1726433705825,15.8252,133.66,133.61,21.28319765]
[1726433706027,15.8252,133.66,133.61,15.11918887]
[1726433706247,15.8252,133.66,133.61,21.28319765]
[1726433706454,15.8252,133.66,133.61,15.11918887]
[1726433706648,15.8252,133.66,133.61,21.28319765]
[1726433707149,15.8252,133.66,133.62,15.11918887]
[1726433707354,15.8252,133.66,133.63,15.11918887]
[1726433707853,16.0745785,133.69,133.64,15.11918887]
[1726433710557,16.0745785,133.69,133.65,1.49548751]
[1726433710727,16.0745785,133.69,133.65,16.61467638]
[1726433711130,0.2493785,133.69,133.66,15.11918887]
[1726433711331,0.2493785,133.69,133.67,1.49595982]
[1726433711551,0.2493785,133.69,133.68,1.49594]
[1726433711952,0.2493785,133.69,133.67,1.49593575]
[1726433712332,0.2493785,133.69,133.68,1.49596796]
[1726433712869,0.2493785,133.69,133.68,15.11918887]
[1726433713075,0.2493785,133.69,133.65,41.27966233]
[1726433713372,0.2493785,133.69,133.65,20.0]
[1726433713844,0.2493785,133.69,133.64,15.11918887]
[1726433714054,0.2493785,133.69,133.64,20.0]
[1726433716177,0.2493785,133.69,133.63,35.11918887]
[1726433716347,0.2493785,133.69,133.63,41.27546776]
[1726433716876,0.2493785,133.69,133.64,1.49624839]
[1726433717249,0.2493785,133.69,133.63,35.11918887]
[1726433717572,0.2493785,133.69,133.64,16.61543725]
[1726433717745,0.2493785,133.69,133.62,20.0]
[1726433717942,0.2493785,133.69,133.62,35.11918887]
[1726433718142,0.2493785,133.69,133.63,15.11918887]
[1726433718350,0.2493785,133.69,133.64,20.0]
[1726433721286,0.2493785,133.69,133.63,15.11918887]
[1726433731499,0.2493785,133.69,133.64,15.11918887]
[1726433731791,0.2493785,133.69,133.65,16.61527756]
[1726433733486,0.2493785,133.69,133.65,15.11918887]
[1726433739474,0.2493785,133.69,133.64,15.11918887]
[1726433745003,0.2493785,133.69,133.65,3.85032762]
[1726433745204,0.2493785,133.69,133.66,3.85032762]
[1726433745514,0.2493785,133.69,133.65,3.85032762]
[1726433746093,0.2493785,133.69,133.66,3.85032762]
[1726433746392,0.2493785,133.69,133.65,3.85032762]
[1726433746572,0.2493785,133.69,133.66,3.85032762]
[1726433746773,0.2493785,133.69,133.65,3.85032762]
[1726433747006,0.2493785,133.69,133.66,3.85032762]
[1726433747306,0.2493785,133.69,133.65,3.85032762]
[1726433747779,0.2493785,133.69,133.66,3.85051757]
[1726433748187,0.2493785,133.69,133.65,3.85051757]
[1726433748404,0.2493785,133.69,133.66,3.85051757]
[1726433748587,0.2493785,133.69,133.65,3.85051757]
[1726433748786,0.2493785,133.69,133.66,3.85051757]
[1726433749109,0.2493785,133.69,133.65,3.85051757]
[1726433749282,0.2493785,133.69,133.66,3.85051757]
[1726433749609,0.2493785,133.69,133.64,15.11918887]
[1726433749813,0.2493785,133.69,133.65,3.85055789]
[1726433750009,0.2493785,133.69,133.66,3.85055789]
[1726433750185,0.2493785,133.69,133.65,3.85139685]
[1726433750387,16.258,133.68,133.66,3.85139685]
[1726433750601,16.258,133.68,133.64,3.85139685]
[1726433750801,16.258,133.68,133.62,15.11918887]
[1726433751007,16.258,133.68,133.61,22.94699307]
[1726433751590,16.258,133.68,133.63,3.85191027]
[1726433751787,16.258,133.68,133.64,3.85191027]
[1726433751988,16.258,133.68,133.62,20.0]
[1726433752197,16.258,133.68,133.63,3.85192834]
[1726433752516,23.7385,133.68,133.64,3.85192834]
[1726433752699,23.7385,133.68,133.62,3.85291282]
[1726433752700,6.0362,133.67,133.62,3.85291282]
[1726433752898,6.0362,133.67,133.63,3.85291282]
[1726433753100,6.0362,133.67,133.61,7.8278042]
[1726433753323,6.0362,133.67,133.62,3.85287806]
[1726433753615,6.0362,133.67,133.63,3.85287806]
[1726433753838,6.0362,133.67,133.61,7.8278042]
[1726433754020,6.0362,133.67,133.62,3.85196392]
[1726433754202,6.0362,133.67,133.63,3.85196392]
[1726433754398,6.0362,133.67,133.61,7.8278042]
[1726433754717,6.0362,133.67,133.63,3.8516995]
[1726433755017,6.0362,133.67,133.62,3.85097287]
[1726433755211,6.0362,133.67,133.61,7.8278042]
[1726433762299,6.0362,133.67,133.6,20.0]
[1726433763507,6.0362,133.67,133.58,22.1381]
[1726433763508,6.0362,133.67,133.61,15.11918887]
[1726433766531,6.0362,133.67,133.6,15.11918887]
[1726433771210,6.0362,133.67,133.59,42.94758519]
[1726433775545,6.0362,133.67,133.6,15.11918887]
[1726433778637,6.0362,133.67,133.61,15.11918887]
[1726433786733,6.0362,133.67,133.6,15.11918887]
[1726433787037,6.0362,133.67,133.61,20.0]
[1726433787447,6.0362,133.67,133.6,20.0]
[1726433788930,6.0362,133.67,133.6,15.11918887]
[1726433792953,6.0362,133.67,133.59,15.11918887]
[1726433793253,6.0362,133.67,133.6,20.0]
[1726433796052,6.0362,133.67,133.57,10.92037395]
[1726433796053,6.0362,133.67,133.61,16.61536081]
[1726433797250,6.0362,133.67,133.61,15.11918887]
[1726433797453,6.0362,133.67,133.6,15.11918887]
[1726433805564,6.0362,133.67,133.61,15.11918887]
[1726433806402,6.0362,133.67,133.62,16.61556125]
[1726433806863,6.0362,133.67,133.63,1.49638879]
[1726433809484,6.0362,133.67,133.62,15.11918887]
[1726433810472,6.0362,133.67,133.64,15.11918887]
[1726433810648,6.0362,133.67,133.65,1.49622349]
[1726433811271,16.258,133.68,133.65,1.49622349]
[1726433812074,16.258,133.68,133.64,15.11918887]
[1726433812774,16.258,133.68,133.65,1.49620495]
[1726433813372,16.258,133.68,133.65,1.4961574]
[1726433814363,16.258,133.68,133.64,15.11918887]
[1726433814547,0.2493785,133.69,133.61,43.776884]
[1726433814746,0.2493785,133.69,133.65,15.11918887]
[1726433814946,0.2493785,133.69,133.66,16.61521297]
[1726433816852,0.2493785,133.69,133.66,15.11918887]
[1726433817352,0.2493785,133.69,133.68,15.11918887]
[1726433817556,0.2493785,133.69,133.66,15.11918887]
[1726433819750,0.2493785,133.69,133.62,22.8345]
[1726433819751,0.2493785,133.69,133.68,15.11918887]
[1726433820166,0.2493785,133.69,133.67,15.11918887]
[1726433823975,0.2493785,133.69,133.66,15.11918887]
[1726433824476,0.2493785,133.69,133.63,43.776884]
[1726433824658,0.2493785,133.69,133.65,20.0]
[1726433825682,0.2493785,133.69,133.65,15.11918887]
[1726433827489,0.2493785,133.69,133.66,15.11918887]
[1726433830195,0.2493785,133.69,133.67,15.11918887]
[1726433833767,0.2493785,133.69,133.66,15.11918887]
[1726433834475,0.2493785,133.69,133.65,20.0]
[1726433834679,0.2493785,133.69,133.65,35.11918887]
[1726433834866,0.2493785,133.69,133.64,20.0]
[1726433835692,16.2125,133.67,133.63,7.82554623]
[1726433835861,16.2125,133.67,133.59,15.11918887]
[1726433836064,16.2125,133.67,133.6,7.82844733]
[1726433838292,16.2125,133.67,133.6,22.9476362]
[1726433840066,16.2125,133.67,133.6,7.82844733]
[1726433840272,16.2125,133.67,133.6,22.9476362]
[1726433842369,16.2125,133.67,133.6,29.109602]
[1726433842585,16.2125,133.67,133.6,22.9476362]
[1726433843098,16.2125,133.67,133.6,29.109602]
[1726433843286,16.2125,133.67,133.6,22.9476362]
[1726433845271,16.2125,133.67,133.6,7.82844733]
[1726433846606,16.2125,133.67,133.6,22.9476362]
[1726433854288,16.2125,133.67,133.6,7.82844733]
[1726433854489,7.4828,133.64,133.54,23.41112594]
[1726433854690,7.484,133.62,133.51,0.2493785]
[1726433855010,15.204,133.59,133.55,8.08006185]
[1726433855209,15.204,133.59,133.55,0.2493785]
[1726433855593,22.6896,133.59,133.55,0.2493785]
[1726433863997,15.204,133.59,133.55,0.2493785]
[1726433865115,22.6899,133.59,133.55,0.2493785]
[1726433869405,7.4862,133.58,133.55,0.2493785]
[1726433872201,22.6896,133.59,133.55,0.2493785]
[1726433877213,15.204,133.59,133.55,0.2493785]
[1726433884131,22.6897,133.59,133.55,0.2493785]
[1726433884639,23.776884,133.58,133.55,0.2493785]
[1726433884841,23.776884,133.58,133.51,0.2493785]
[1726433884842,7.4884,133.54,133.51,0.2493785]
[1726433885210,7.489,133.53,133.51,0.2493785]
[1726433888963,7.4895,133.52,133.51,0.2493785]
[1726433889122,16.5968,133.54,133.51,0.2493785]
[1726433889660,7.489,133.53,133.51,0.2493785]
[1726433893823,7.4895,133.52,133.51,0.2493785]
[1726433894513,7.4895,133.52,133.46,0.2493785]
[1726433894514,22.49,133.52,133.46,0.2493785]
[1726433894712,23.776884,133.51,133.46,0.2493785]
[1726433895530,7.4912,133.49,133.46,0.2493785]
[1726433896641,7.4907,133.5,133.46,0.2493785]
[1726433898551,7.4901,133.51,133.46,0.2493785]
[1726433909535,7.4896,133.52,133.46,0.2493785]
[1726433913470,7.4911,133.5,133.46,0.2493785]
[1726433914560,7.4901,133.51,133.46,0.2493785]
[1726433924071,26.28291131,133.55,133.46,0.2493785]
[1726433924072,23.79621131,133.55,133.46,0.2493785]
[1726433924379,7.4893,133.53,133.46,0.2493785]
[1726433926644,8.79401131,133.55,133.46,0.2493785]
[1726433926852,7.4884,133.54,133.46,24.0262625]
[1726433935362,1.30621131,133.55,133.46,0.2493785]
[1726433935877,7.4895,133.52,133.46,0.2493785]
[1726433938490,7.4888,133.54,133.46,0.2493785]
[1726433938658,1.30621131,133.55,133.46,24.0262625]
[1726433940280,7.4891,133.53,133.46,24.0262625]
[1726433942981,7.4895,133.52,133.46,0.2493785]
[1726433945977,23.776884,133.54,133.46,0.2493785]
[1726433946189,41.2088,133.56,133.46,0.2493785]
[1726433946190,7.4906,133.5,133.46,0.2493785]
[1726433946387,7.4902,133.51,133.46,0.2493785]
[1726433949103,7.4908,133.5,133.46,0.2493785]
[1726433949592,7.4901,133.51,133.46,0.2493785]
[1726433951705,7.4896,133.52,133.46,0.2493785]
[1726433954303,7.4901,133.51,133.46,0.2493785]
[1726433956294,7.4895,133.52,133.46,0.2493785]
[1726433961882,7.4901,133.51,133.46,0.2493785]
[1726433967888,46.266884,133.54,133.46,0.2493785]
[1726433968210,7.4895,133.52,133.46,0.2493785]
[1726433968510,46.266884,133.54,133.46,0.2493785]
[1726433968682,7.491,133.5,133.46,0.2493785]
[1726433970087,7.491,133.5,133.47,3.87193116]
[1726433970295,7.491,133.5,133.46,0.2493785]
[1726433970492,7.491,133.5,133.47,3.87193116]
[1726433970707,7.4901,133.51,133.46,6.44446401]
[1726433970908,7.4901,133.51,133.47,3.87169663]
[1726433971096,7.4901,133.51,133.46,6.44446401]
[1726433971296,7.4901,133.51,133.47,3.87168027]
[1726433971704,7.4901,133.51,133.46,0.2493785]
[1726433971918,7.4901,133.51,133.46,6.44406606]
[1726433972285,7.4901,133.51,133.47,3.87168056]
[1726433972917,7.4901,133.51,133.46,6.44406739]
[1726433973289,7.4901,133.51,133.47,3.87168056]
[1726433973488,7.4901,133.51,133.46,6.44406739]
[1726433973887,7.4901,133.51,133.47,3.87169609]
[1726433974187,7.4901,133.51,133.46,6.44406739]
[1726433974388,7.4901,133.51,133.47,3.87169609]
[1726433974588,7.4901,133.51,133.46,6.44406739]
[1726433974806,7.4901,133.51,133.47,3.87168056]
[1726433974995,7.4901,133.51,133.46,6.44406739]
[1726433975197,7.4901,133.51,133.47,3.87168056]
[1726433975493,7.4901,133.51,133.46,6.44406739]
[1726433975694,7.4901,133.51,133.47,3.87168056]
[1726433975903,7.4901,133.51,133.46,6.44406739]
[1726433976218,7.4901,133.51,133.47,3.87167972]
[1726433976521,7.4901,133.51,133.46,6.44406739]
[1726433976823,7.4901,133.51,133.47,3.87168056]
[1726433976988,7.4901,133.51,133.46,6.44406739]
[1726433977189,7.4901,133.51,133.47,3.87168056]
[1726433977389,7.4901,133.51,133.46,0.2493785]
[1726433977592,7.4901,133.51,133.47,3.87167972]
[1726433977886,7.4901,133.51,133.46,0.2493785]
[1726433978083,7.4901,133.51,133.47,3.87168056]
[1726433978392,7.4901,133.51,133.46,0.2493785]
[1726433978597,7.4901,133.51,133.47,10.06600431]
[1726433978802,7.4901,133.51,133.46,0.2493785]
[1726433978994,7.4901,133.51,133.48,3.87153929]
[1726433979195,7.4901,133.51,133.47,6.19446286]
[1726433979391,7.4901,133.51,133.48,3.87143158]
[1726433979594,7.4901,133.51,133.47,6.19446286]
[1726433979796,7.4901,133.51,133.48,3.87143075]
[1726433980012,7.4901,133.51,133.47,6.19446286]
[1726433980214,7.4901,133.51,133.48,3.87143158]
[1726433980399,1.30638722,133.52,133.46,0.2493785]
[1726433980609,23.79638722,133.52,133.47,3.87162204]
[1726433980807,7.4923,133.47,133.46,0.2493785]
[1726433995231,29.9823,133.47,133.46,0.2493785]
[1726434001510,7.4937,133.45,133.41,22.1486]
[1726434002309,7.4929,133.46,133.41,22.1486]
[1726434002609,29.9824,133.47,133.41,22.1486]
[1726434003640,7.4929,133.46,133.41,22.1486]
[1726434004637,1.30610837,133.48,133.41,22.1486]
[1726434004638,7.4924,133.47,133.41,22.1486]
[1726434004839,29.9824,133.47,133.41,22.1486]
[1726434008141,7.4924,133.47,133.41,22.1486]
[1726434008819,29.9824,133.47,133.41,22.1486]
[1726434009057,7.4924,133.47,133.41,22.1486]
[1726434009744,29.9824,133.47,133.41,22.1486]
[1726434010242,7.4924,133.47,133.41,22.1486]
[1726434010413,8.79790837,133.48,133.41,22.1486]
[1726434011032,7.4924,133.47,133.41,22.1486]
[1726434011351,29.9824,133.47,133.41,22.1486]
[1726434012147,7.493,133.46,133.41,22.1486]
[1726434012318,7.4935,133.45,133.41,22.1486]
[1726434013538,22.49,133.45,133.38,21.5693785]
[1726434013726,7.4945,133.43,133.38,21.5693785]
[1726434017928,23.776884,133.43,133.38,21.5693785]
[1726434018140,23.776884,133.43,133.38,0.2493785]
[1726434018141,7.4967,133.4,133.38,0.2493785]
[1726434018349,7.4968,133.39,133.38,0.2493785]
[1726434024844,7.4983,133.37,133.34,22.0831785]
[1726434025561,7.4983,133.37,133.34,0.2493785]
[1726434026853,385.6,133.42,133.34,0.2493785]
[1726434027041,7.4961,133.41,133.34,0.2493785]
[1726434027351,7.4961,133.41,133.35,6.5932]
[1726434028131,7.4962,133.4,133.35,6.5932]
[1726434031754,22.49,133.39,133.35,6.5932]
[1726434031942,7.4962,133.4,133.35,6.5932]
[1726434035947,7.4957,133.41,133.35,22.876]
[1726434040940,7.4957,133.41,133.35,37.99518887]
[1726434041758,7.4952,133.42,133.36,15.11918887]
[1726434042557,7.4946,133.43,133.36,18.99391214]
[1726434043167,7.4946,133.43,133.36,15.11918887]
[1726434044755,7.4946,133.43,133.36,18.99388363]
[1726434046244,7.4946,133.43,133.36,15.11918887]
[1726434046445,7.4946,133.43,133.36,18.99385643]
[1726434046768,7.4941,133.44,133.37,36.75258887]
[1726434047140,7.4935,133.45,133.39,15.11918887]
[1726434047346,1.30710178,133.46,133.4,15.11918887]
[1726434047561,8.80040178,133.46,133.39,15.11918887]
[1726434049369,7.4933,133.46,133.39,15.11918887]
[1726434049754,7.4933,133.46,133.4,15.11918887]
[1726434050360,7.4933,133.46,133.38,10.07167911]
[1726434050361,7.4933,133.46,133.39,15.11918887]
[1726434050670,7.4933,133.46,133.4,15.11918887]
[1726434051565,7.4933,133.46,133.39,15.11918887]
[1726434054875,7.4923,133.47,133.4,15.11918887]
[1726434055175,7.4923,133.47,133.41,15.11918887]
[1726434055345,7.4923,133.47,133.4,15.11918887]
[1726434057077,7.4923,133.47,133.39,15.11918887]
[1726434057272,22.49,133.47,133.37,21.6334]
[1726434057444,7.4939,133.45,133.39,3.8737219]
[1726434057765,7.4939,133.45,133.37,21.6334]
[1726434059161,7.4939,133.45,133.37,36.75258887]
[1726434060773,7.4939,133.45,133.37,42.95100674]
[1726434060977,7.4939,133.45,133.37,36.75258887]
[1726434061978,7.494,133.44,133.37,36.75258887]
[1726434062174,7.4948,133.43,133.37,21.6334]
[1726434062551,7.494,133.44,133.37,21.6334]
[1726434062889,29.984,133.44,133.37,36.75258887]
[1726434065086,7.494,133.44,133.37,36.75258887]
[1726434065374,7.494,133.44,133.38,15.11918887]
[1726434065763,7.494,133.44,133.37,36.75258887]
[1726434066777,7.4946,133.43,133.37,21.6334]
[1726434066989,7.4946,133.43,133.35,21.31789332]
[1726434067669,7.4953,133.42,133.35,21.31789332]
[1726434068053,7.4957,133.41,133.34,37.77666737]
[1726434068284,7.4963,133.4,133.34,22.6574785]
[1726434068467,7.4963,133.4,133.34,28.85618295]
[1726434068666,7.4963,133.4,133.34,22.6574785]
[1726434069185,7.4963,133.4,133.34,28.85618295]
[1726434069873,7.4963,133.4,133.34,22.6574785]
[1726434070261,7.4963,133.4,133.34,28.85618295]
[1726434070459,7.4957,133.41,133.34,22.6574785]
[1726434070894,7.4957,133.41,133.34,28.85618295]
[1726434071059,7.4963,133.4,133.34,0.2493785]
[1726434072091,7.4958,133.41,133.34,6.44808295]
[1726434072901,7.4958,133.41,133.34,0.2493785]
[1726434073092,7.4958,133.41,133.34,6.44924654]
[1726434073578,22.49,133.4,133.34,6.44924654]
[1726434073780,7.4973,133.38,133.34,6.44924654]
[1726434073986,7.4973,133.38,133.34,0.2493785]
[1726434079189,7.498,133.37,133.34,0.2493785]
[1726434079384,7.4985,133.36,133.34,0.2493785]
[1726434082181,7.499,133.35,133.34,0.2493785]
[1726434082989,7.4986,133.36,133.34,0.2493785]
[1726434083186,7.499,133.35,133.34,0.2493785]
[1726434084137,29.989,133.35,133.34,0.2493785]
[1726434085510,16.1274,133.36,133.3,0.2493785]
[1726434085511,7.5008,133.32,133.3,0.2493785]
[1726434085715,16.1274,133.36,133.3,0.2493785]
[1726434085716,46.266884,133.35,133.3,0.2493785]
[1726434086397,22.49,133.34,133.3,0.2493785]
[1726434086585,23.776884,133.35,133.3,0.2493785]
[1726434087416,7.5003,133.33,133.3,0.2493785]
[1726434088500,7.5003,133.33,133.25,22.055257]
[1726434089898,7.5003,133.33,133.25,37.17444587]
[1726434090300,7.4997,133.34,133.25,37.17444587]
[1726434091020,7.5002,133.33,133.25,37.17444587]
[1726434091226,7.5002,133.33,133.25,22.055257]
[1726434093122,7.4997,133.34,133.26,25.27739867]
[1726434093424,7.4991,133.35,133.26,25.27739867]
[1726434093605,7.4991,133.35,133.26,23.776884]
[1726434094318,7.4996,133.34,133.26,23.776884]
[1726434095713,7.4991,133.35,133.26,23.776884]
[1726434096113,17.68370718,133.36,133.28,15.11918887]
[1726434096317,0.2493785,133.36,133.29,23.46648425]
[1726434096502,0.2493785,133.36,133.29,21.9663]
[1726434097123,7.7478785,133.36,133.29,21.9663]
[1726434098006,0.2493785,133.36,133.29,21.9663]
[1726434099903,7.499,133.35,133.29,21.9663]
[1726434100607,7.4997,133.34,133.26,45.743184]
[1726434100816,7.4997,133.34,133.26,21.9663]
[1726434102903,15.6672,133.33,133.23,7.80540198]
[1726434103235,15.6672,133.33,133.22,37.33486737]
[1726434103411,15.6672,133.33,133.23,15.11918887]
[1726434104342,15.6672,133.33,133.25,15.11918887]
[1726434104719,0.2493785,133.36,133.27,37.08548887]
[1726434104720,7.4996,133.34,133.27,37.08548887]
[1726434105233,7.4996,133.34,133.27,21.9663]
[1726434108525,10.90056444,133.33,133.22,22.2156785]
[1726434108738,10.90056444,133.33,133.22,37.33486737]
[1726434109043,7.5012,133.32,133.23,15.11918887]
[1726434109209,7.5012,133.32,133.22,22.2156785]
[1726434109408,7.5014,133.31,133.22,37.33486737]
[1726434110333,7.5014,133.31,133.23,23.776884]
[1726434112134,7.5014,133.31,133.22,0.2493785]
[1726434112135,15.9555,133.3,133.22,0.2493785]
[1726434112318,7.503,133.28,133.22,0.2493785]
[1726434115331,7.504,133.27,133.22,0.2493785]
[1726434115513,49.34606444,133.3,133.22,0.2493785]
[1726434115514,7.5041,133.26,133.22,0.2493785]
[1726434117338,7.5036,133.27,133.22,0.2493785]
[1726434119319,7.503,133.28,133.22,0.2493785]
[1726434120426,7.5024,133.29,133.22,0.2493785]
[1726434120937,15.9555,133.3,133.22,0.2493785]
[1726434120938,23.4575,133.3,133.22,15.36856737]
[1726434121155,15.9555,133.3,133.23,23.776884]
[1726434121318,15.5359,133.33,133.23,60.83627287]
[1726434122320,23.0366,133.33,133.24,15.11918887]
[1726434122645,7.5008,133.32,133.24,15.11918887]
[1726434122845,23.036,133.33,133.23,60.83627287]
[1726434123027,10.90056444,133.31,133.23,21.9402]
[1726434124336,7.502,133.3,133.23,21.9402]
[1726434125442,7.5013,133.31,133.23,21.9402]
[1726434126643,7.5018,133.3,133.23,21.9402]
[1726434127232,15.5359,133.33,133.23,21.9402]
[1726434127233,7.5034,133.28,133.23,21.9402]
[1726434127434,10.90056444,133.3,133.22,0.2493785]
[1726434127943,7.5034,133.28,133.22,0.2493785]
[1726434129171,7.5036,133.27,133.22,0.2493785]
[1726434129358,10.90056444,133.3,133.22,0.2493785]
[1726434129359,23.776884,133.29,133.22,0.2493785]
[1726434129650,7.5042,133.26,133.22,0.2493785]
[1726434134235,23.776884,133.26,133.22,0.2493785]
[1726434134423,7.5058,133.23,133.22,0.2493785]
[1726434148953,7.5053,133.24,133.22,0.2493785]
[1726434149263,31.38268271,133.25,133.22,0.2493785]
[1726434149436,30.0747,133.25,133.22,0.2493785]
[1726434150151,7.5047,133.25,133.22,0.2493785]
[1726434156266,7.5042,133.26,133.22,0.2493785]
[1726434157782,7.5047,133.25,133.22,0.2493785]
[1726434159979,7.5058,133.23,133.22,0.2493785]
[1726434160765,30.0758,133.23,133.22,0.2493785]
[1726434161268,30.0758,133.23,133.18,0.2493785]
[1726434161269,46.346884,133.22,133.18,0.2493785]
[1726434161459,7.5075,133.2,133.18,0.2493785]
[1726434171570,30.0769,133.21,133.18,0.2493785]
[1726434175089,7.5069,133.21,133.18,0.2493785]
[1726434182704,7.508,133.19,133.18,0.2493785]
[1726434184577,30.078,133.19,133.18,0.2493785]
[1726434190176,7.5096,133.17,133.14,0.2493785]
[1726434193282,7.5103,133.15,133.14,0.2493785]
[1726434193576,7.5097,133.16,133.14,0.2493785]
[1726434194496,30.0803,133.15,133.14,0.2493785]
[1726434195185,30.0803,133.15,133.1,22.2926785]
[1726434195186,7.512,133.12,133.1,0.2493785]
[1726434195384,7.5125,133.11,133.1,0.2493785]
[1726434195995,30.0825,133.11,133.1,0.2493785]
[1726434196790,30.0825,133.11,133.06,0.2493785]
[1726434196791,7.5148,133.07,133.06,0.2493785]
[1726434197367,30.0848,133.07,133.06,0.2493785]
[1726434197573,30.0848,133.07,133.05,7.53313234]
[1726434197574,7.5154,133.06,133.05,7.53313234]
[1726434197801,53.862284,133.06,133.05,7.53313234]
[1726434198280,53.862284,133.06,133.02,0.2493785]
[1726434198281,73.863984,133.03,133.02,0.2493785]
[1726434198475,73.863984,133.03,132.85,11.640625]
[1726434198476,46.346884,133.02,133.0,0.7335593]
[1726434198691,43.776884,133.03,132.94,0.3613676]
[1726434198692,46.346884,133.01,132.94,0.3613676]
[1726434198888,22.57,132.99,132.94,0.3613676]
[1726434199073,46.346884,133.0,132.94,0.3613676]
[1726434199276,20.0,133.03,132.94,0.3613676]
[1726434199478,1.30671669,132.99,132.94,0.3613676]
[1726434199677,23.776884,133.02,132.94,0.3613676]
[1726434200079,1.30682504,133.0,132.94,0.3613676]
[1726434200275,22.57,132.98,132.94,0.3613676]
[1726434200515,23.776884,132.99,132.94,0.3613676]
[1726434200684,7.5199,132.98,132.94,0.3613676]
[1726434201075,22.57,132.98,132.94,0.3613676]
[1726434201495,31.296684,132.99,132.94,0.3613676]
[1726434201698,7.5199,132.98,132.94,0.3613676]
[1726434201885,23.776884,132.99,132.94,0.3613676]
[1726434202488,1.30682504,133.0,132.94,0.3613676]
[1726434203102,1.30682504,133.0,132.95,6.529]
[1726434203280,7.5176,133.03,132.95,6.529]
[1726434203685,1.30660589,133.02,132.95,6.529]
[1726434204492,1.30660589,133.02,132.95,22.0433]
[1726434205814,7.5165,133.04,132.95,22.0433]
[1726434206190,1.30600019,133.04,132.95,22.0433]
[1726434206392,1.30600019,133.04,132.96,23.776884]
[1726434206593,1.30600019,133.04,132.96,38.89607287]
[1726434207310,10.90056444,133.06,132.97,15.11918887]
[1726434207504,10.90056444,133.06,132.98,23.776884]
[1726434207691,12.20656111,133.06,132.98,23.776884]
[1726434208012,12.20656111,133.06,132.99,21.64818887]
[1726434208214,16.2919,133.11,133.0,38.89607287]
[1726434208215,7.5142,133.08,133.0,38.89607287]
[1726434208527,7.5142,133.08,132.99,6.529]
[1726434208528,8.8197304,133.08,132.99,6.529]
[1726434208698,19.72029484,133.08,132.99,21.64818887]
[1726434209113,7.5149,133.07,132.99,21.64818887]
[1726434209624,23.776884,133.07,132.99,6.529]
[1726434209801,10.90056444,133.06,132.99,6.529]
[1726434210004,23.776884,133.05,132.99,6.529]
[1726434210314,7.5166,133.04,132.99,6.529]
[1726434210489,23.776884,133.05,132.99,6.529]
[1726434210693,31.293284,133.05,132.99,6.529]
[1726434210919,18.41616444,133.06,132.99,6.529]
[1726434211101,7.5162,133.05,132.99,6.529]
[1726434211297,8.8198304,133.08,132.99,6.529]
[1726434211694,1.3055304,133.08,132.99,6.529]
[1726434211911,7.5157,133.06,132.99,6.529]
[1726434212298,7.5149,133.07,132.99,6.529]
[1726434213798,7.5156,133.06,132.99,6.529]
[1726434214123,1.3055304,133.08,132.99,6.529]
[1726434214325,31.3902304,133.08,132.99,6.529]
[1726434214514,7.5149,133.07,132.99,6.529]
[1726434214711,7.5154,133.06,132.99,6.529]
[1726434215312,22.57,133.07,132.99,6.529]
[1726434216530,22.57,133.07,133.0,16.2786]
[1726434216531,7.515,133.07,133.0,16.2786]
[1726434218132,8.8198304,133.08,133.0,16.2786]
[1726434218424,1.3055304,133.08,133.01,23.776884]
[1726434218630,7.5132,133.1,133.01,25.28023937]
[1726434218825,15.12982828,133.13,133.01,23.776884]
[1726434219126,1.30581179,133.1,133.01,23.776884]
[1726434219303,7.5126,133.11,133.01,23.776884]
[1726434219614,7.5131,133.1,133.01,23.776884]
[1726434220322,7.5148,133.07,133.0,16.2786]
[1726434220837,7.5143,133.08,133.0,16.2786]
[1726434222428,22.57,133.09,133.0,16.2786]
[1726434222725,7.516,133.05,133.0,16.2786]
[1726434222920,7.5154,133.06,133.0,16.2786]
[1726434226830,46.346884,133.08,133.0,16.2786]
[1726434227129,22.57,133.06,132.99,6.529]
[1726434227333,7.5182,133.01,132.99,6.529]
[1726434227503,22.57,133.04,132.97,15.9014]
[1726434227905,7.5177,133.02,132.97,15.9014]
[1726434228133,7.5182,133.01,132.97,15.9014]